[Event "*** SCC Grand Prix: Titled Tuesday Blitz"]
[Site "Chess.com"]
[Date "2020.09.08"]
[Round "1"]
[White "krasavetc"]
[Black "seorobert1971"]
[Result "0-1"]
[WhiteElo "2342"]
[BlackElo "2677"]
[TimeControl "180+1"]
[EndTime "10:05:56 PDT"]
[Termination "seorobert1971 won on time"]

1. e4 {[%clk 0:02:58.9]} 1... e6 {[%clk 0:03:00]} 2. Nf3 {[%clk 0:02:58.6]} 2...
d5 {[%clk 0:02:59.9]} 3. exd5 {[%clk 0:02:59]} 3... exd5 {[%clk 0:02:59.6]} 4.
d4 {[%clk 0:02:59.5]} 4... Bd6 {[%clk 0:02:59.8]} 5. Be2 {[%clk 0:02:59.8]} 5...
Ne7 {[%clk 0:02:59.6]} 6. O-O {[%clk 0:03:00.2]} 6... O-O {[%clk 0:02:59.7]} 7.
c4 {[%clk 0:02:59.3]} 7... c6 {[%clk 0:02:59.5]} 8. c5 {[%clk 0:02:57.3]} 8...
Bc7 {[%clk 0:02:59.5]} 9. Nc3 {[%clk 0:02:56.9]} 9... Nd7 {[%clk 0:02:59.3]} 10.
Bd3 {[%clk 0:02:55]} 10... Nf6 {[%clk 0:02:58.2]} 11. Bg5 {[%clk 0:02:50.4]}
11... Ng6 {[%clk 0:02:56.3]} 12. Re1 {[%clk 0:02:50.1]} 12... h6 {[%clk
0:02:56]} 13. Bd2 {[%clk 0:02:16.6]} 13... Nf4 {[%clk 0:02:55.2]} 14. Bb1 {[%clk
0:02:11]} 14... Bg4 {[%clk 0:02:53.7]} 15. Bxf4 {[%clk 0:02:02.1]} 15... Bxf4
{[%clk 0:02:52.8]} 16. Qd3 {[%clk 0:02:02.5]} 16... Re8 {[%clk 0:02:46.7]} 17.
Bc2 {[%clk 0:01:58.2]} 17... Qc7 {[%clk 0:02:45.7]} 18. h3 {[%clk 0:01:41.8]}
18... Bxf3 {[%clk 0:02:42.4]} 19. Qxf3 {[%clk 0:01:34.5]} 19... Bd2 {[%clk
0:02:40.8]} 20. Re2 {[%clk 0:01:33.4]} 20... Rxe2 {[%clk 0:02:34.5]} 21. Qxe2
{[%clk 0:01:30.7]} 21... Bxc3 {[%clk 0:02:31.9]} 22. bxc3 {[%clk 0:01:29.4]}
22... Re8 {[%clk 0:02:30.4]} 23. Qd2 {[%clk 0:01:23.5]} 23... Qe7 {[%clk
0:02:23.8]} 24. Kf1 {[%clk 0:01:20.3]} 24... Ne4 {[%clk 0:02:15.6]} 25. Qe3
{[%clk 0:01:06.1]} 25... Qf6 {[%clk 0:02:09.5]} 26. Re1 {[%clk 0:01:02.4]} 26...
Re6 {[%clk 0:02:06.5]} 27. Bxe4 {[%clk 0:00:47]} 27... Rxe4 {[%clk 0:02:02.1]}
28. Qd3 {[%clk 0:00:44.5]} 28... Rxe1+ {[%clk 0:01:56.7]} 29. Kxe1 {[%clk
0:00:42.8]} 29... Kf8 {[%clk 0:01:56.5]} 30. f3 {[%clk 0:00:37.3]} 30... g6
{[%clk 0:01:53.8]} 31. Kf2 {[%clk 0:00:37]} 31... Qh4+ {[%clk 0:01:53.4]} 32.
Kf1 {[%clk 0:00:36.7]} 32... Qf4 {[%clk 0:01:52.4]} 33. Qc2 {[%clk 0:00:29.9]}
33... Qe3 {[%clk 0:01:50.9]} 34. Qb2 {[%clk 0:00:26.7]} 34... Qd3+ {[%clk
0:01:36]} 0-1

[Event "*** SCC Grand Prix: Titled Tuesday Blitz"]
[Site "Chess.com"]
[Date "2020.09.08"]
[Round "1"]
[White "pastouche06"]
[Black "natelleka"]
[Result "1-0"]
[WhiteElo "2511"]
[BlackElo "2120"]
[TimeControl "180+1"]
[EndTime "10:05:57 PDT"]
[Termination "pastouche06 won by resignation"]

1. d4 {[%clk 0:03:00.4]} 1... d5 {[%clk 0:02:59.9]} 2. c4 {[%clk 0:02:59]} 2...
c5 {[%clk 0:02:59.9]} 3. cxd5 {[%clk 0:02:57.4]} 3... Qxd5 {[%clk 0:02:59.3]} 4.
Nf3 {[%clk 0:02:57.5]} 4... cxd4 {[%clk 0:02:59.3]} 5. Nc3 {[%clk 0:02:57.1]}
5... Qa5 {[%clk 0:02:59.5]} 6. Nxd4 {[%clk 0:02:57]} 6... Nf6 {[%clk 0:03:00]}
7. g3 {[%clk 0:02:56.9]} 7... e5 {[%clk 0:02:59.4]} 8. Nb3 {[%clk 0:02:57.1]}
8... Qc7 {[%clk 0:02:59.3]} 9. Bg2 {[%clk 0:02:57.6]} 9... Bb4 {[%clk
0:02:58.7]} 10. O-O {[%clk 0:02:55.7]} 10... Bxc3 {[%clk 0:02:58.1]} 11. bxc3
{[%clk 0:02:56.6]} 11... O-O {[%clk 0:02:55.7]} 12. Bg5 {[%clk 0:02:50.6]} 12...
Nc6 {[%clk 0:02:53]} 13. Bxf6 {[%clk 0:02:47.6]} 13... gxf6 {[%clk 0:02:52.4]}
14. Qd2 {[%clk 0:02:46.2]} 14... Kg7 {[%clk 0:02:51.8]} 15. Rad1 {[%clk
0:02:33.7]} 15... Rd8 {[%clk 0:02:39]} 16. Qe3 {[%clk 0:02:33.7]} 16... Be6
{[%clk 0:02:35.7]} 17. Nc5 {[%clk 0:02:03.3]} 17... Bxa2 {[%clk 0:02:30.4]} 18.
f4 {[%clk 0:02:03.4]} 18... Rxd1 {[%clk 0:01:53.3]} 19. Rxd1 {[%clk 0:02:02.5]}
19... Rc8 {[%clk 0:01:39.7]} 20. Be4 {[%clk 0:01:52.7]} 20... Nd4 {[%clk
0:01:24.5]} 21. cxd4 {[%clk 0:01:50.8]} 21... exd4 {[%clk 0:01:23.8]} 22. Qa3
{[%clk 0:01:50.8]} 22... Qxc5 {[%clk 0:01:17.5]} 23. Qxa2 {[%clk 0:01:50.5]}
23... d3+ {[%clk 0:01:07.2]} 24. Kg2 {[%clk 0:01:50.3]} 24... dxe2 {[%clk
0:00:55.9]} 25. Qxe2 {[%clk 0:01:51.2]} 25... Re8 {[%clk 0:00:53.3]} 26. Qg4+
{[%clk 0:01:48.1]} 26... Kh8 {[%clk 0:00:47.7]} 27. Qf5 {[%clk 0:01:38.9]} 27...
Qxf5 {[%clk 0:00:32.8]} 28. Bxf5 {[%clk 0:01:39.8]} 28... b5 {[%clk 0:00:30.1]}
29. Rd7 {[%clk 0:01:39]} 29... Rb8 {[%clk 0:00:26.9]} 30. Rxf7 {[%clk 0:01:37]}
30... b4 {[%clk 0:00:25.4]} 31. Rxh7+ {[%clk 0:01:35.9]} 31... Kg8 {[%clk
0:00:24.8]} 32. Rxa7 {[%clk 0:01:36.3]} 32... b3 {[%clk 0:00:24.9]} 33. Be6+
{[%clk 0:01:34]} 33... Kh8 {[%clk 0:00:24]} 34. Bf5 {[%clk 0:01:28.5]} 34... b2
{[%clk 0:00:23.2]} 35. Bb1 {[%clk 0:01:29.1]} 35... Kg8 {[%clk 0:00:20.5]} 36.
h4 {[%clk 0:01:29]} 36... Kf8 {[%clk 0:00:20.6]} 37. h5 {[%clk 0:01:29.4]} 37...
Kg8 {[%clk 0:00:20.7]} 38. h6 {[%clk 0:01:29.8]} 38... Kh8 {[%clk 0:00:17.8]}
39. g4 {[%clk 0:01:29.9]} 39... Kg8 {[%clk 0:00:17.5]} 40. g5 {[%clk 0:01:29.6]}
40... fxg5 {[%clk 0:00:17.8]} 41. fxg5 {[%clk 0:01:30.5]} 1-0

[Event "*** SCC Grand Prix: Titled Tuesday Blitz"]
[Site "Chess.com"]
[Date "2020.09.08"]
[Round "1"]
[White "wonderfultime"]
[Black "Oligan22"]
[Result "1-0"]
[WhiteElo "2945"]
[BlackElo "2459"]
[TimeControl "180+1"]
[EndTime "10:06:00 PDT"]
[Termination "wonderfultime won by checkmate"]

1. d4 {[%clk 0:02:59.9]} 1... d5 {[%clk 0:02:59.7]} 2. Nf3 {[%clk 0:02:55.2]}
2... Nf6 {[%clk 0:02:56.5]} 3. Bf4 {[%clk 0:02:53.5]} 3... c5 {[%clk 0:02:54.1]}
4. c3 {[%clk 0:02:52.2]} 4... cxd4 {[%clk 0:02:27.1]} 5. cxd4 {[%clk 0:02:51.9]}
5... Nc6 {[%clk 0:02:27.1]} 6. e3 {[%clk 0:02:49.4]} 6... Qb6 {[%clk 0:02:25.7]}
7. Qc1 {[%clk 0:02:44.3]} 7... Bg4 {[%clk 0:02:14.3]} 8. Nc3 {[%clk 0:02:43.1]}
8... e6 {[%clk 0:02:12.8]} 9. Bd3 {[%clk 0:02:41.4]} 9... Rc8 {[%clk 0:02:07.3]}
10. Ne5 {[%clk 0:02:40.3]} 10... Nxe5 {[%clk 0:02:02.4]} 11. Bxe5 {[%clk
0:02:38.4]} 11... Nd7 {[%clk 0:02:00.2]} 12. Bg3 {[%clk 0:02:33.5]} 12... Bb4
{[%clk 0:01:58.6]} 13. O-O {[%clk 0:02:31.5]} 13... Qa5 {[%clk 0:01:33.5]} 14.
f3 {[%clk 0:02:01.9]} 14... Bh5 {[%clk 0:01:32.5]} 15. Be1 {[%clk 0:02:00.7]}
15... O-O {[%clk 0:01:16.7]} 16. a3 {[%clk 0:01:58.6]} 16... Bd6 {[%clk
0:01:09.5]} 17. Qb1 {[%clk 0:01:39.7]} 17... Bg6 {[%clk 0:01:09.5]} 18. Ne4
{[%clk 0:01:38.1]} 18... Qb6 {[%clk 0:01:05.3]} 19. Nxd6 {[%clk 0:01:38.3]}
19... Qxd6 {[%clk 0:01:05.5]} 20. Bb4 {[%clk 0:01:38.7]} 20... Qb6 {[%clk
0:00:55.4]} 21. Bxg6 {[%clk 0:01:38.4]} 21... hxg6 {[%clk 0:00:52]} 22. Bxf8
{[%clk 0:01:38.6]} 22... Nxf8 {[%clk 0:00:44]} 23. Rc1 {[%clk 0:01:39]} 23...
Rc4 {[%clk 0:00:35]} 24. Rxc4 {[%clk 0:01:38.8]} 24... dxc4 {[%clk 0:00:35.9]}
25. Qc2 {[%clk 0:01:39.6]} 25... Qa6 {[%clk 0:00:27.7]} 26. Rc1 {[%clk
0:01:37.6]} 26... b5 {[%clk 0:00:27.7]} 27. a4 {[%clk 0:01:35]} 27... bxa4
{[%clk 0:00:24.8]} 28. Qxc4 {[%clk 0:01:34.9]} 28... Qb6 {[%clk 0:00:24.6]} 29.
Rc2 {[%clk 0:01:33.2]} 29... Qa5 {[%clk 0:00:16.7]} 30. Kf2 {[%clk 0:01:33]}
30... g5 {[%clk 0:00:08.5]} 31. Qc5 {[%clk 0:01:32.6]} 31... Qa6 {[%clk
0:00:06.4]} 32. Qxg5 {[%clk 0:01:32.8]} 32... Qd3 {[%clk 0:00:05.7]} 33. Rc8
{[%clk 0:01:31.7]} 33... Qd2+ {[%clk 0:00:05.5]} 34. Kg3 {[%clk 0:01:32.2]}
34... Qe1+ {[%clk 0:00:05.4]} 35. Kh3 {[%clk 0:01:32.3]} 35... e5 {[%clk
0:00:02.3]} 36. Rxf8+ {[%clk 0:01:31.8]} 36... Kxf8 {[%clk 0:00:02.2]} 37. Qd8#
{[%clk 0:01:32.1]} 1-0

[Event "*** SCC Grand Prix: Titled Tuesday Blitz"]
[Site "Chess.com"]
[Date "2020.09.08"]
[Round "1"]
[White "Gvetadze"]
[Black "VerdeNotte"]
[Result "0-1"]
[WhiteElo "2424"]
[BlackElo "2854"]
[TimeControl "180+1"]
[EndTime "10:06:02 PDT"]
[Termination "VerdeNotte won by resignation"]

1. e4 {[%clk 0:02:59]} 1... e5 {[%clk 0:03:00]} 2. Nf3 {[%clk 0:02:58.6]} 2...
Nc6 {[%clk 0:03:00.5]} 3. Bb5 {[%clk 0:02:58.3]} 3... a6 {[%clk 0:02:58]} 4. Ba4
{[%clk 0:02:58]} 4... d6 {[%clk 0:02:57.5]} 5. c3 {[%clk 0:02:57.6]} 5... Bd7
{[%clk 0:02:56.9]} 6. O-O {[%clk 0:02:57.3]} 6... g6 {[%clk 0:02:56.8]} 7. d4
{[%clk 0:02:56.9]} 7... Bg7 {[%clk 0:02:57.3]} 8. Re1 {[%clk 0:02:55.4]} 8...
Nf6 {[%clk 0:02:56.1]} 9. h3 {[%clk 0:02:54.8]} 9... O-O {[%clk 0:02:55.9]} 10.
Nbd2 {[%clk 0:02:52.7]} 10... exd4 {[%clk 0:02:49.6]} 11. cxd4 {[%clk 0:02:52]}
11... Nb4 {[%clk 0:02:50]} 12. Bxd7 {[%clk 0:02:48.8]} 12... Qxd7 {[%clk
0:02:50.3]} 13. Qb3 {[%clk 0:02:47.6]} 13... a5 {[%clk 0:02:47.9]} 14. a3 {[%clk
0:02:45.4]} 14... Nc6 {[%clk 0:02:43]} 15. Nf1 {[%clk 0:02:43.7]} 15... Nh5
{[%clk 0:02:27.8]} 16. Be3 {[%clk 0:02:30.2]} 16... Rfe8 {[%clk 0:02:27.7]} 17.
N1d2 {[%clk 0:02:27]} 17... Nf6 {[%clk 0:02:27.5]} 18. Bf4 {[%clk 0:02:20.7]}
18... a4 {[%clk 0:02:25.3]} 19. Qc2 {[%clk 0:02:15.9]} 19... Nh5 {[%clk
0:02:24.1]} 20. Be3 {[%clk 0:02:14.6]} 20... Nf6 {[%clk 0:02:17.9]} 21. Rac1
{[%clk 0:02:08.6]} 21... Re7 {[%clk 0:02:15.5]} 22. d5 {[%clk 0:01:57.2]} 22...
Na5 {[%clk 0:02:07.5]} 23. Nd4 {[%clk 0:01:54.2]} 23... Rae8 {[%clk 0:01:55.2]}
24. Bg5 {[%clk 0:01:29.7]} 24... h6 {[%clk 0:01:53.8]} 25. Bxf6 {[%clk
0:01:27.3]} 25... Bxf6 {[%clk 0:01:54.7]} 26. N2f3 {[%clk 0:01:25]} 26... c5
{[%clk 0:01:42]} 27. dxc6 {[%clk 0:01:16]} 27... Nxc6 {[%clk 0:01:42.2]} 28.
Nxc6 {[%clk 0:01:10]} 28... Qxc6 {[%clk 0:01:42]} 29. Qd2 {[%clk 0:00:40.1]}
29... Qb6 {[%clk 0:01:37.9]} 30. Qxh6 {[%clk 0:00:36.9]} 30... Qxb2 {[%clk
0:01:31.3]} 31. Ng5 {[%clk 0:00:17.3]} 31... Bxg5 {[%clk 0:01:31]} 32. Qxg5
{[%clk 0:00:17.5]} 32... Qxa3 {[%clk 0:01:27]} 33. Qb5 {[%clk 0:00:09.6]} 33...
Rxe4 {[%clk 0:01:24.8]} 34. Rxe4 {[%clk 0:00:05.3]} 34... Qxc1+ {[%clk
0:01:24.3]} 0-1

[Event "*** SCC Grand Prix: Titled Tuesday Blitz"]
[Site "Chess.com"]
[Date "2020.09.08"]
[Round "1"]
[White "Aleksey_Sorokin"]
[Black "lider34"]
[Result "1/2-1/2"]
[WhiteElo "2781"]
[BlackElo "2410"]
[TimeControl "180+1"]
[EndTime "10:06:06 PDT"]
[Termination "Game drawn by agreement"]

1. d4 {[%clk 0:03:00.9]} 1... Nf6 {[%clk 0:02:58.9]} 2. c4 {[%clk 0:03:00.9]}
2... g6 {[%clk 0:02:59.3]} 3. Nc3 {[%clk 0:03:00.5]} 3... Bg7 {[%clk 0:03:00.2]}
4. e4 {[%clk 0:03:00.5]} 4... d6 {[%clk 0:03:00.6]} 5. Nf3 {[%clk 0:03:00.6]}
5... O-O {[%clk 0:03:00.4]} 6. Be2 {[%clk 0:03:00.8]} 6... e5 {[%clk 0:03:00.2]}
7. O-O {[%clk 0:03:00.7]} 7... Nc6 {[%clk 0:03:00]} 8. d5 {[%clk 0:03:00.5]}
8... Ne7 {[%clk 0:02:59.8]} 9. Ne1 {[%clk 0:02:59.5]} 9... Nd7 {[%clk
0:02:58.7]} 10. Nd3 {[%clk 0:02:56.8]} 10... f5 {[%clk 0:02:59.6]} 11. f3 {[%clk
0:02:56.8]} 11... f4 {[%clk 0:02:55.8]} 12. b4 {[%clk 0:02:56.5]} 12... Nf6
{[%clk 0:02:54.8]} 13. a4 {[%clk 0:02:54.2]} 13... g5 {[%clk 0:02:52.7]} 14. c5
{[%clk 0:02:52.1]} 14... Rf7 {[%clk 0:02:51.4]} 15. Kh1 {[%clk 0:02:51.1]} 15...
h5 {[%clk 0:02:49.3]} 16. Nf2 {[%clk 0:02:50.1]} 16... Bf8 {[%clk 0:02:48.2]}
17. Rg1 {[%clk 0:02:48.9]} 17... Rg7 {[%clk 0:02:46.6]} 18. g3 {[%clk
0:02:48.6]} 18... a5 {[%clk 0:02:23.6]} 19. cxd6 {[%clk 0:02:42.4]} 19... cxd6
{[%clk 0:02:21]} 20. bxa5 {[%clk 0:02:38.7]} 20... Rxa5 {[%clk 0:02:15.3]} 21.
Bd2 {[%clk 0:02:33.3]} 21... Ra8 {[%clk 0:02:11.5]} 22. Nb5 {[%clk 0:02:29.2]}
22... Ng6 {[%clk 0:02:07.7]} 23. gxf4 {[%clk 0:02:25]} 23... Nxf4 {[%clk
0:02:04.4]} 24. Bxf4 {[%clk 0:02:24.6]} 24... exf4 {[%clk 0:01:57.5]} 25. Qd4
{[%clk 0:02:19.4]} 25... g4 {[%clk 0:01:43]} 26. e5 {[%clk 0:02:12.5]} 26...
dxe5 {[%clk 0:01:37.1]} 27. Qxe5 {[%clk 0:02:13.4]} 27... Bd7 {[%clk 0:01:19.7]}
28. Nc7 {[%clk 0:01:59.2]} 28... Ra5 {[%clk 0:01:14.5]} 29. Ne6 {[%clk
0:01:55.8]} 29... Bxe6 {[%clk 0:01:12.7]} 30. Qxe6+ {[%clk 0:01:55.4]} 30... Kh8
{[%clk 0:01:12.9]} 31. fxg4 {[%clk 0:01:51.6]} 31... Qxd5+ {[%clk 0:01:00.7]}
32. Qxd5 {[%clk 0:01:51]} 32... Rxd5 {[%clk 0:01:01.1]} 33. Rad1 {[%clk
0:01:32.7]} 33... Rxd1 {[%clk 0:00:57.8]} 34. Bxd1 {[%clk 0:01:33.6]} 34... Bc5
{[%clk 0:00:55.4]} 35. Rg2 {[%clk 0:01:31]} 35... hxg4 {[%clk 0:00:47.9]} 36.
Nxg4 {[%clk 0:01:29.1]} 36... Nxg4 {[%clk 0:00:46.1]} 37. Rxg4 {[%clk
0:01:24.5]} 37... Rxg4 {[%clk 0:00:44.9]} 38. Bxg4 {[%clk 0:01:25.4]} 38... b6
{[%clk 0:00:44.2]} 39. Kg2 {[%clk 0:01:24.9]} 39... Kg7 {[%clk 0:00:43.8]} 40.
Kf3 {[%clk 0:01:25.1]} 40... Bd6 {[%clk 0:00:42.8]} 41. h4 {[%clk 0:01:24.6]}
41... Be7 {[%clk 0:00:41.4]} 42. h5 {[%clk 0:01:23.9]} 42... Bd6 {[%clk
0:00:41.3]} 43. Ke4 {[%clk 0:01:24.1]} 43... Kf6 {[%clk 0:00:40.7]} 44. Bf3
{[%clk 0:01:22.4]} 44... Bb4 {[%clk 0:00:38.4]} 45. Kxf4 {[%clk 0:01:21.3]}
45... Bd2+ {[%clk 0:00:38.1]} 46. Ke4 {[%clk 0:01:21.2]} 46... Kg5 {[%clk
0:00:37.3]} 47. Kd3 {[%clk 0:01:20.5]} 47... Be1 {[%clk 0:00:36.4]} 48. Kc4
{[%clk 0:01:18.6]} 1/2-1/2

[Event "*** SCC Grand Prix: Titled Tuesday Blitz"]
[Site "Chess.com"]
[Date "2020.09.08"]
[Round "1"]
[White "wannabe2700"]
[Black "Mambastik-Fantastic"]
[Result "1-0"]
[WhiteElo "2626"]
[BlackElo "2304"]
[TimeControl "180+1"]
[EndTime "10:06:06 PDT"]
[Termination "wannabe2700 won by resignation"]

1. e4 {[%clk 0:03:00.9]} 1... c5 {[%clk 0:02:37.3]} 2. d4 {[%clk 0:02:58.2]}
2... cxd4 {[%clk 0:02:37]} 3. Nf3 {[%clk 0:02:47.2]} 3... d6 {[%clk 0:02:34.5]}
4. Nxd4 {[%clk 0:02:48.1]} 4... Nf6 {[%clk 0:02:33.7]} 5. Nc3 {[%clk 0:02:47.8]}
5... a6 {[%clk 0:02:33.7]} 6. Be3 {[%clk 0:02:47.4]} 6... e5 {[%clk 0:02:33.6]}
7. Nb3 {[%clk 0:02:47.8]} 7... Be6 {[%clk 0:02:34.1]} 8. f3 {[%clk 0:02:48.2]}
8... Be7 {[%clk 0:02:34.3]} 9. Qd2 {[%clk 0:02:48.8]} 9... O-O {[%clk
0:02:34.3]} 10. O-O-O {[%clk 0:02:49.5]} 10... Nbd7 {[%clk 0:02:34.3]} 11. g4
{[%clk 0:02:49.9]} 11... b5 {[%clk 0:02:33.3]} 12. g5 {[%clk 0:02:50.2]} 12...
b4 {[%clk 0:02:32.7]} 13. Na4 {[%clk 0:02:50.3]} 13... Nh5 {[%clk 0:02:30.2]}
14. Qxb4 {[%clk 0:02:50.5]} 14... Bxg5 {[%clk 0:02:16]} 15. Bxg5 {[%clk
0:02:47.5]} 15... Qxg5+ {[%clk 0:02:14.3]} 16. Kb1 {[%clk 0:02:47.5]} 16... Rfc8
{[%clk 0:01:51.1]} 17. Qxd6 {[%clk 0:02:39.8]} 17... h6 {[%clk 0:01:33.4]} 18.
Bxa6 {[%clk 0:02:30]} 18... Rcb8 {[%clk 0:01:27.2]} 19. Nbc5 {[%clk 0:02:22.5]}
19... Nxc5 {[%clk 0:01:06.1]} 20. Nxc5 {[%clk 0:02:23.4]} 20... Nf4 {[%clk
0:01:00.7]} 21. Nxe6 {[%clk 0:02:08.6]} 21... Nxe6 {[%clk 0:00:54]} 22. Bc4
{[%clk 0:01:51.9]} 22... Nd4 {[%clk 0:00:49.5]} 23. Rhf1 {[%clk 0:01:01.5]}
23... Qg2 {[%clk 0:00:45]} 24. Bb3 {[%clk 0:00:44]} 24... Qxh2 {[%clk
0:00:38.5]} 25. Rxd4 {[%clk 0:00:40.5]} 25... Qg2 {[%clk 0:00:28.7]} 26. Rdd1
{[%clk 0:00:37.1]} 1-0

[Event "*** SCC Grand Prix: Titled Tuesday Blitz"]
[Site "Chess.com"]
[Date "2020.09.08"]
[Round "1"]
[White "MNyuyu"]
[Black "Shota_Azaladze"]
[Result "0-1"]
[WhiteElo "2340"]
[BlackElo "2674"]
[TimeControl "180+1"]
[EndTime "10:06:15 PDT"]
[Termination "Shota_Azaladze won by resignation"]

1. d4 {[%clk 0:02:57.6]} 1... g6 {[%clk 0:03:00]} 2. Nf3 {[%clk 0:02:55.7]} 2...
Bg7 {[%clk 0:03:00]} 3. Bf4 {[%clk 0:02:53]} 3... d6 {[%clk 0:02:59.4]} 4. e3
{[%clk 0:02:52.6]} 4... Nf6 {[%clk 0:02:59.4]} 5. Be2 {[%clk 0:02:44.9]} 5...
O-O {[%clk 0:02:59.8]} 6. h3 {[%clk 0:02:38]} 6... Nc6 {[%clk 0:02:58.8]} 7. c3
{[%clk 0:02:34.2]} 7... Nd7 {[%clk 0:02:55]} 8. O-O {[%clk 0:02:30.2]} 8... e5
{[%clk 0:02:54.8]} 9. dxe5 {[%clk 0:02:25.2]} 9... dxe5 {[%clk 0:02:54]} 10. Bh2
{[%clk 0:02:24.6]} 10... Qe7 {[%clk 0:02:52.8]} 11. Nbd2 {[%clk 0:02:03.1]}
11... f6 {[%clk 0:02:42.5]} 12. Qc2 {[%clk 0:01:51.6]} 12... a5 {[%clk
0:02:39.6]} 13. Bb5 {[%clk 0:01:38.2]} 13... Nb6 {[%clk 0:02:38.1]} 14. Nc4
{[%clk 0:01:28]} 14... Nxc4 {[%clk 0:02:25.8]} 15. Bxc4+ {[%clk 0:01:26.4]}
15... Kh8 {[%clk 0:02:24.9]} 16. Rad1 {[%clk 0:01:20]} 16... Bf5 {[%clk
0:02:22.5]} 17. e4 {[%clk 0:01:11.1]} 17... Bd7 {[%clk 0:02:17.3]} 18. Rd3
{[%clk 0:01:00.1]} 18... Na7 {[%clk 0:02:16.1]} 19. Rfd1 {[%clk 0:00:48.8]}
19... Be8 {[%clk 0:02:15.4]} 20. a3 {[%clk 0:00:36.7]} 20... Nc8 {[%clk
0:02:11.4]} 21. Rd8 {[%clk 0:00:24.9]} 21... Nb6 {[%clk 0:02:10.6]} 22. Rxa8
{[%clk 0:00:23.8]} 22... Nxa8 {[%clk 0:02:11.5]} 23. Qd3 {[%clk 0:00:22.9]}
23... Nb6 {[%clk 0:02:09.5]} 24. Bb5 {[%clk 0:00:22]} 24... c6 {[%clk
0:02:06.6]} 25. Bc4 {[%clk 0:00:21.2]} 25... Nxc4 {[%clk 0:02:05.7]} 26. Qxc4
{[%clk 0:00:20.7]} 26... Bf7 {[%clk 0:02:06.3]} 27. Qd3 {[%clk 0:00:19.7]} 27...
Be6 {[%clk 0:01:58.5]} 28. Qd6 {[%clk 0:00:19.1]} 28... Qf7 {[%clk 0:01:54.9]}
29. g4 {[%clk 0:00:18.2]} 29... h6 {[%clk 0:01:46.9]} 30. Kg2 {[%clk 0:00:15.8]}
30... a4 {[%clk 0:01:46]} 31. Nh4 {[%clk 0:00:15.4]} 31... Re8 {[%clk
0:01:45.1]} 32. f4 {[%clk 0:00:15.1]} 32... exf4 {[%clk 0:01:41.4]} 33. e5
{[%clk 0:00:14.5]} 33... fxe5 {[%clk 0:01:39.7]} 34. Qd3 {[%clk 0:00:14.2]}
34... Kh7 {[%clk 0:01:35.4]} 35. Kg1 {[%clk 0:00:12.4]} 35... Qf6 {[%clk
0:01:32.7]} 36. Qe4 {[%clk 0:00:11.7]} 36... Bd5 {[%clk 0:01:30.1]} 37. Qe1
{[%clk 0:00:11.4]} 37... b5 {[%clk 0:01:25.7]} 38. Ng2 {[%clk 0:00:10.5]} 38...
Rf8 {[%clk 0:01:23.1]} 39. b3 {[%clk 0:00:08.5]} 39... axb3 {[%clk 0:01:22.5]}
0-1

[Event "*** SCC Grand Prix: Titled Tuesday Blitz"]
[Site "Chess.com"]
[Date "2020.09.08"]
[Round "1"]
[White "Th3_Hound"]
[Black "Jenia84"]
[Result "1/2-1/2"]
[WhiteElo "2614"]
[BlackElo "2310"]
[TimeControl "180+1"]
[EndTime "10:06:16 PDT"]
[Termination "Game drawn by repetition"]

1. e4 {[%clk 0:03:00.9]} 1... e5 {[%clk 0:02:52.6]} 2. Nf3 {[%clk 0:03:01.1]}
2... Nc6 {[%clk 0:02:44.2]} 3. Bb5 {[%clk 0:02:59.5]} 3... Nf6 {[%clk
0:02:29.6]} 4. O-O {[%clk 0:02:56.3]} 4... Nxe4 {[%clk 0:02:29.3]} 5. Re1 {[%clk
0:02:55.6]} 5... Nd6 {[%clk 0:02:29.7]} 6. Nxe5 {[%clk 0:02:55.5]} 6... Be7
{[%clk 0:02:29.6]} 7. Bf1 {[%clk 0:02:53.3]} 7... Nxe5 {[%clk 0:02:29.9]} 8.
Rxe5 {[%clk 0:02:52.7]} 8... O-O {[%clk 0:02:30.3]} 9. d4 {[%clk 0:02:52.3]}
9... Ne8 {[%clk 0:02:30.5]} 10. d5 {[%clk 0:02:44.4]} 10... Bc5 {[%clk
0:02:29.6]} 11. Nc3 {[%clk 0:02:42.1]} 11... d6 {[%clk 0:02:28.8]} 12. Re1
{[%clk 0:02:38.2]} 12... Bf5 {[%clk 0:02:22.5]} 13. Be3 {[%clk 0:02:37.3]} 13...
Bb6 {[%clk 0:02:17.1]} 14. Bd3 {[%clk 0:02:25.3]} 14... Bxd3 {[%clk 0:02:14.4]}
15. Qxd3 {[%clk 0:02:26.2]} 15... Bxe3 {[%clk 0:02:13.2]} 16. Rxe3 {[%clk
0:02:25.9]} 16... Nf6 {[%clk 0:02:03.4]} 17. Rae1 {[%clk 0:02:22.6]} 17... Re8
{[%clk 0:01:53.5]} 18. Ne4 {[%clk 0:02:04.5]} 18... Rxe4 {[%clk 0:01:50]} 19.
Rxe4 {[%clk 0:02:05.4]} 19... Nxe4 {[%clk 0:01:49.8]} 20. Rxe4 {[%clk
0:02:04.1]} 20... Qf6 {[%clk 0:01:40.1]} 21. c3 {[%clk 0:02:02]} 21... g6 {[%clk
0:01:36.6]} 22. Qe3 {[%clk 0:01:59.1]} 22... Kg7 {[%clk 0:01:28.2]} 23. h4
{[%clk 0:01:56.6]} 23... h5 {[%clk 0:01:26.1]} 24. Re7 {[%clk 0:01:48]} 24...
Rc8 {[%clk 0:01:08.7]} 25. g3 {[%clk 0:01:33.6]} 25... b6 {[%clk 0:01:07.5]} 26.
a4 {[%clk 0:01:17.6]} 26... a5 {[%clk 0:01:06.5]} 27. Kg2 {[%clk 0:01:14.5]}
27... Qf5 {[%clk 0:01:00.1]} 28. c4 {[%clk 0:01:09.6]} 28... Qf6 {[%clk
0:00:56]} 29. b3 {[%clk 0:00:56.9]} 29... Kf8 {[%clk 0:00:37.7]} 30. Re4 {[%clk
0:00:54.8]} 30... Kg7 {[%clk 0:00:33.8]} 31. Rf4 {[%clk 0:00:52.5]} 31... Qe5
{[%clk 0:00:33.5]} 32. Re4 {[%clk 0:00:49.7]} 32... Qf6 {[%clk 0:00:32.2]} 33.
Re7 {[%clk 0:00:44.5]} 33... Kf8 {[%clk 0:00:31]} 34. Re4 {[%clk 0:00:40.9]}
34... Kg7 {[%clk 0:00:30.4]} 1/2-1/2